fUSD/lending_fUSD_20250410
["ID","MTS","AMOUNT","RATE_DAILY","PERIOD"]
[357654420,1744277439740,-200.0,0.00042789,2]
[357654421,1744277439756,-200.0,0.00042789,2]
[357654422,1744277439772,-200.0,0.00042789,2]
[357654423,1744277439788,-200.0,0.00042789,2]
[357654424,1744277439805,-200.0,0.00042789,2]
[357654425,1744277439821,-200.0,0.00042789,2]
[357654426,1744277439837,-200.0,0.00042789,2]
[357654427,1744277439853,-200.0,0.00042789,2]
[357654428,1744277439868,-200.0,0.00042789,2]
[357654429,1744277439884,-200.0,0.00042789,2]
[357654430,1744277439899,-200.0,0.00042789,2]
[357654431,1744277439914,-200.0,0.00042789,2]
[357654432,1744277439929,-200.0,0.00042789,2]
[357654433,1744277439944,-200.0,0.00042789,2]
[357654434,1744277439959,-200.0,0.00042789,2]
[357654435,1744277439974,-200.0,0.00042789,2]
[357654436,1744277439989,-200.0,0.00042789,2]
[357654437,1744277440003,-200.0,0.00042789,2]
[357654438,1744277440013,-200.0,0.00042789,2]
[357654439,1744277440022,-200.0,0.00042789,2]
[357654440,1744277440033,-200.0,0.00042789,2]
[357654441,1744277440045,-200.0,0.00042789,2]
[357654442,1744277440054,-200.0,0.00042789,2]
[357654443,1744277440063,-200.0,0.00042789,2]
[357654444,1744277440072,-200.0,0.00042789,2]
[357654445,1744277440082,-500.0,0.00042789,120]
[357654446,1744277440091,-500.0,0.00042789,120]
[357654447,1744277440101,-500.0,0.00042789,120]
[357654448,1744277440111,-500.0,0.00042789,120]
[357654458,1744277440438,-500.0,0.00042789,120]
[357654459,1744277440474,-500.0,0.00042789,120]
[357654460,1744277440492,-500.0,0.00042789,120]
[357654461,1744277440502,-500.0,0.00042789,120]
[357654462,1744277440511,-500.0,0.00042789,120]
[357654463,1744277440521,-500.0,0.00042789,120]
[357654464,1744277440530,-500.0,0.00042789,120]
[357654465,1744277440540,-500.0,0.00042789,120]
[357654466,1744277440549,-500.0,0.00042789,120]
[357654467,1744277440559,-200.0,0.00042789,2]
[357654468,1744277440568,-279.0,0.00042789,2]
[357654469,1744277440577,-489.0,0.00042789,120]
[357654470,1744277440587,-500.0,0.00042799,10]
[357654471,1744277440596,-500.0,0.00042799,10]
[357654472,1744277440607,-500.0,0.00042799,10]
[357654473,1744277440616,-500.0,0.00042799,10]
[357654474,1744277440626,-500.0,0.00042799,10]
[357654475,1744277440635,-500.0,0.00042799,10]
[357654476,1744277440645,-500.0,0.00042799,10]
[357654477,1744277440654,-500.0,0.00042799,10]
[357654478,1744277440664,-500.0,0.00042799,10]
[357654479,1744277440673,-400.0,0.00042799,10]
[357654480,1744277440683,-10958.81,0.000428,2]
[357654481,1744277440692,-10678.9,0.000428,2]
[357654482,1744277440702,-716.465397,0.000428,14]
[357654483,1744277440711,-716.465397,0.000428,14]
[357654484,1744277440721,-151.0,0.000428,14]
[357654485,1744277440730,-151.0,0.000428,14]
[357654486,1744277440740,-320.885545,0.000428,14]
[357654487,1744277440750,-158.597109,0.000428,14]
[357654488,1744277440759,-158.597109,0.000428,14]
[357654489,1744277440769,-270.761915,0.000428,14]
[357654490,1744277440778,-151.0,0.000428,14]
[357654491,1744277440788,-151.0,0.000428,14]
[357654492,1744277440800,-151.0,0.000428,14]
[357654493,1744277440809,-212.817067,0.000428,14]
[357654494,1744277440818,-212.817067,0.000428,14]
[357654495,1744277440828,-193.504426,0.000428,14]
[357654496,1744277440837,-193.504426,0.000428,14]
[357654497,1744277440847,-166.982203,0.000428,14]
[357654498,1744277440858,-246.912867,0.000428,14]
[357654499,1744277440868,-166.982203,0.000428,14]
[357654500,1744277440877,-151.0,0.000428,14]
[357654501,1744277440886,-1969.888005,0.000428,14]
[357654502,1744277440895,-1969.888005,0.000428,14]
[357654503,1744277440904,-2733.502155,0.000428,14]
[357654504,1744277440913,-2733.502155,0.000428,14]
[357654505,1744277440922,-538.92868,0.000428,14]
[357654506,1744277440932,-538.92868,0.000428,14]
[357654507,1744277440941,-151.0,0.000428,14]
[357654508,1744277440950,-151.0,0.000428,14]
[357654509,1744277440959,-210.077597,0.000428,14]
[357654510,1744277440969,-210.077597,0.000428,14]
[357654511,1744277440978,-240.034035,0.000428,14]
[357654512,1744277440987,-240.034035,0.000428,14]
[357654513,1744277440996,-151.0,0.000428,14]
[357654514,1744277441005,-154.213829,0.000428,14]
[357654515,1744277441015,-151.0,0.000428,14]
[357654516,1744277441024,-1000.0,0.000428,28]
[357654517,1744277441033,-1000.0,0.000428,28]
[357654518,1744277441042,-1000.0,0.000428,28]
[357654519,1744277441051,-1000.0,0.000428,28]
[357654520,1744277441060,-1000.0,0.000428,28]
[357654521,1744277441070,-1000.0,0.000428,28]
[357654522,1744277441079,-1000.0,0.000428,28]
[357654523,1744277441088,-1000.0,0.000428,28]
[357654524,1744277441098,-1000.0,0.000428,28]
[357654525,1744277441107,-1000.0,0.000428,28]
[357654526,1744277441117,-1088.063715,0.000428,28]
[357654527,1744277441127,-150.0,0.00042821,30]
[357654528,1744277441137,-151.0,0.00042914,14]
[357654529,1744277441146,-200.0,0.00042954,2]
[357654530,1744277441155,-200.0,0.00042954,2]
[357654531,1744277441165,-213.2895732,0.00042958,30]
[357654532,1744277441175,-500.0,0.00043,120]
[357654533,1744277441184,-1000.0,0.00043,120]
[357654534,1744277441193,-1520.93529127,0.00043,30]
[357654535,1744277441202,-1021.20763024,0.00043,120]
[357654536,1744277441212,-377.45989875,0.00043,120]
[357654537,1744277441221,-151.0,0.00043025,14]
[357654538,1744277441231,-151.0,0.00043028,14]
[357654539,1744277441240,-1646.09531921,0.00043028,15]
[357654540,1744277441250,-283.985042,0.00043028,14]
[357654541,1744277441259,-209.369399,0.00043028,14]
[357654542,1744277441269,-283.985042,0.00043028,14]
[357654543,1744277441278,-209.369399,0.00043028,14]
[357654544,1744277441288,-389.96228,0.00043028,14]
[357654545,1744277441297,-389.96228,0.00043028,14]
[357654546,1744277441306,-152.0,0.00043038,7]
[357654547,1744277441315,-150.0,0.00043056,120]
[357654548,1744277441326,-222.0,0.00043151,90]
[357654549,1744277441335,-719.04747942,0.00043167,2]
[357654550,1744277441344,-10582.76731433,0.00043204,15]
[357654551,1744277441353,-151.0,0.00043225,14]
[357654552,1744277441363,-151.0,0.00043225,14]
[357654553,1744277441372,-353.8899,0.00043225,14]
[357654554,1744277441382,-353.8899,0.00043225,14]
[357654555,1744277441391,-151.0,0.00043225,14]
[357654556,1744277441400,-151.0,0.00043225,14]
[357654557,1744277441410,-383.372407,0.00043225,14]
[357654558,1744277441420,-383.372407,0.00043225,14]
[357654559,1744277441430,-169.419974,0.00043225,14]
[357654560,1744277441440,-169.419974,0.00043225,14]
[357654561,1744277441449,-183.127598,0.00043225,14]
[357654562,1744277441458,-183.127598,0.00043225,14]
[357654563,1744277441469,-12500.0,0.00043225,7]
[357654564,1744277441478,-296.459368,0.00043234,14]
[357654565,1744277441487,-151.699424,0.00043234,14]
[357654566,1744277441497,-151.699424,0.00043234,14]
[357654567,1744277441506,-12500.0,0.00043234,7]
[357654568,1744277441516,-12500.0,0.00043243,7]
[357654569,1744277441525,-12500.0,0.00043252,7]
[357654570,1744277441534,-150.0,0.00043259,2]
[357654571,1744277441543,-12500.0,0.00043261,7]
[357654572,1744277441553,-12500.0,0.00043269,7]
[357654573,1744277441562,-500.0,0.00043277,10]
[357654574,1744277441571,-500.0,0.00043277,10]
[357654575,1744277441580,-500.0,0.00043277,10]
[357654576,1744277441590,-500.0,0.00043277,10]
[357654577,1744277441599,-500.0,0.00043277,10]
[357654578,1744277441610,-195.3984375,0.00043277,10]
[357654579,1744277441629,-500.0,0.00043277,10]
[357654580,1744277441648,-500.0,0.00043277,10]
[357654581,1744277441663,-500.0,0.00043277,10]
[357654582,1744277441673,-12500.0,0.00043278,7]
[357654583,1744277441683,-12500.0,0.00043278,7]
[357654584,1744277441694,-500.0,0.00043286,10]
[357654585,1744277441704,-500.0,0.00043286,10]
[357654586,1744277441714,-500.0,0.00043286,10]
[357654587,1744277441724,-500.0,0.00043286,10]
[357654588,1744277441733,-500.0,0.00043286,10]
[357654589,1744277441747,-500.0,0.00043286,10]
[357654590,1744277441756,-500.0,0.00043286,10]
[357654591,1744277441766,-500.0,0.00043286,10]
[357654592,1744277441776,-590.09055458,0.00043287,5]
[357654593,1744277441789,-12500.0,0.00043287,7]
[357654594,1744277441799,-12500.0,0.00043287,7]
[357654595,1744277441809,-10056.77388548,0.00043287,7]
[357654596,1744277441819,-1646.09531921,0.00043332,15]
[357654597,1744277441829,-200.0,0.00043354,120]
[357654598,1744277441839,-150.0,0.00043369,120]
[357654599,1744277441848,-159.71,0.00043462,30]
[357654600,1744277441858,-159.71,0.00043462,30]
[357654601,1744277441869,-150.0,0.00043462,30]
[357654602,1744277441878,-445.64,0.00043462,30]
[357654603,1744277441888,-348.49,0.00043462,30]
[357654604,1744277441897,-150.0,0.00043462,30]
[357654605,1744277441906,-159.71,0.00043462,30]
[357654606,1744277441915,-445.64,0.00043462,30]
[357654607,1744277441924,-150.0,0.00043462,30]
[357654608,1744277441933,-348.49,0.00043462,30]
[357654609,1744277441944,-159.71,0.00043462,30]
[357654610,1744277441953,-445.64,0.00043462,30]
[357654611,1744277441962,-348.49,0.00043462,30]
[357654612,1744277441971,-159.71,0.00043462,30]
[357654613,1744277441980,-150.0,0.00043462,30]
[357654614,1744277441989,-445.64,0.00043462,30]
[357654615,1744277441998,-348.49,0.00043462,30]
[357654616,1744277442007,-159.71,0.00043462,30]
[357654617,1744277442016,-150.0,0.00043462,30]
[357654618,1744277442024,-159.71,0.00043462,30]
[357654619,1744277442033,-150.0,0.00043462,30]
[357654620,1744277442042,-445.64,0.00043462,30]
[357654621,1744277442051,-445.64,0.00043462,30]
[357654622,1744277442060,-159.71,0.00043462,30]
[357654623,1744277442070,-150.0,0.00043462,30]
[357654624,1744277442079,-159.71,0.00043462,30]
[357654625,1744277442089,-159.71,0.00043462,30]
[357654626,1744277442108,-159.71,0.00043462,30]
[357654627,1744277442129,-159.71,0.00043462,30]
[357654628,1744277442143,-159.71,0.00043462,30]
[357654629,1744277442153,-159.71,0.00043462,30]
[357654630,1744277442162,-159.71,0.00043462,30]
[357654631,1744277442171,-319.27,0.00043462,30]
[357654632,1744277442180,-159.71,0.00043462,30]
[357654633,1744277442190,-159.71,0.00043462,30]
[357654634,1744277442199,-159.71,0.00043462,30]
[357654635,1744277442208,-159.71,0.00043462,30]
[357654636,1744277442216,-159.71,0.00043462,30]
[357654637,1744277442226,-159.71,0.00043462,30]
[357654638,1744277442235,-865.12,0.00043616,30]
[357654639,1744277442244,-1646.09531921,0.00043636,15]
[357654640,1744277442254,-10582.76731433,0.00043636,15]
[357654641,1744277442265,-4244.59709394,0.00043648,2]
[357654642,1744277442274,-2113.43001191,0.0004367,5]
[357654643,1744277442285,-440.72676786,0.000437,120]
[357654644,1744277442294,-716.465397,0.000437,14]
[357654645,1744277442304,-716.465397,0.000437,14]
[357654646,1744277442313,-151.0,0.000437,14]
[357654647,1744277442322,-151.0,0.000437,14]
[357654648,1744277442332,-151.0,0.000437,14]
[357654649,1744277442341,-212.817067,0.000437,14]
[357654650,1744277442350,-212.817067,0.000437,14]
[357654651,1744277442359,-193.504426,0.000437,14]
[357654652,1744277442368,-193.504426,0.000437,14]
[357654653,1744277442377,-166.982203,0.000437,14]
[357654654,1744277442386,-166.982203,0.000437,14]
[357654655,1744277442395,-151.0,0.000437,14]
[357654656,1744277442405,-1969.888005,0.000437,14]
[357654657,1744277442414,-1969.888005,0.000437,14]
[357654658,1744277442423,-2733.502155,0.000437,14]
[357654659,1744277442433,-2733.502155,0.000437,14]
[357654660,1744277442443,-538.92868,0.000437,14]
[357654661,1744277442452,-538.92868,0.000437,14]
[357654662,1744277442462,-151.0,0.000437,14]
[357654663,1744277442472,-151.0,0.000437,14]
[357654664,1744277442481,-151.0,0.000437,14]
[357654665,1744277442491,-210.077597,0.000437,14]
[357654666,1744277442500,-210.077597,0.000437,14]
[357654667,1744277442510,-283.985042,0.000437,14]
[357654668,1744277442519,-209.369399,0.000437,14]
[357654669,1744277442529,-283.985042,0.000437,14]
[357654670,1744277442539,-209.369399,0.000437,14]
[357654671,1744277442548,-240.034035,0.000437,14]
[357654672,1744277442558,-240.034035,0.000437,14]
[357654673,1744277442569,-389.96228,0.000437,14]
[357654674,1744277442579,-389.96228,0.000437,14]
[357654676,1744277442588,-151.0,0.000437,14]
[357654677,1744277442598,-151.0,0.000437,14]
[357654678,1744277442607,-1811.11,0.000437,17]
[357654680,1744277442618,-1902.21176743,0.000437,3]
[357654683,1744277442628,-5000.0,0.000437,5]
[357654685,1744277442638,-5000.0,0.000437,6]
[357654687,1744277442648,-5000.0,0.000437,7]
[357654689,1744277442659,-4486.0,0.000437,8]
[357654690,1744277442668,-5000.0,0.000437,10]
[357654691,1744277442678,-5000.0,0.000437,16]
[357654692,1744277442688,-500.0,0.00043705,10]
[357654693,1744277442699,-500.0,0.00043705,10]
[357654694,1744277442708,-500.0,0.00043705,10]
[357654695,1744277442718,-500.0,0.00043705,10]
[357654696,1744277442728,-500.0,0.00043705,10]
[357654697,1744277442737,-500.0,0.00043705,10]
[357654698,1744277442747,-500.0,0.00043705,10]
[357654699,1744277442757,-500.0,0.00043705,10]
[357654700,1744277442767,-165.40168,0.00043705,14]
[357654701,1744277442777,-150.0,0.00043705,3]
[357654702,1744277442787,-353.8899,0.00043706,14]
[357654703,1744277442802,-353.8899,0.00043706,14]
[357654704,1744277442812,-151.0,0.00043706,14]
[357654705,1744277442821,-151.0,0.00043706,14]
[357654706,1744277442831,-12006.1661549,0.00043706,2]
[357654707,1744277442842,-1468.8757878,0.00043706,2]
[357654708,1744277442852,-4594.363306,0.00043706,2]
[357654709,1744277442861,-89376.3393422,0.00043706,2]
[357654710,1744277442872,-383.372407,0.00043706,14]
[357654711,1744277442883,-383.372407,0.00043706,14]
[357654712,1744277442893,-169.419974,0.00043706,14]
[357654713,1744277442902,-169.419974,0.00043706,14]
[357654714,1744277442912,-183.127598,0.00043706,14]
[357654715,1744277442922,-183.127598,0.00043706,14]
[357654716,1744277442932,-150.0,0.00043708,120]
[357654717,1744277442942,-151.0,0.00043708,14]
[357654718,1744277442952,-320.885545,0.00043708,14]
[357654719,1744277442962,-158.597109,0.00043708,14]
[357654720,1744277442971,-158.597109,0.00043708,14]
[357654721,1744277442981,-151.0,0.00043708,14]
[357654722,1744277442991,-193.899102,0.00043708,14]
[357654723,1744277443001,-151.0,0.00043708,14]
[357654724,1744277443011,-151.0,0.00043708,14]
[357654725,1744277443021,-296.459368,0.00043708,14]
[357654726,1744277443031,-151.699424,0.00043708,14]
[357654727,1744277443041,-151.699424,0.00043708,14]
[357654728,1744277443051,-215.0738,0.00043713,2]
[357654729,1744277443061,-745.65223616,0.00043715,2]
[357654730,1744277443071,-2796.20975669,0.00043716,2]
[357654731,1744277443081,-500.0,0.00043734,10]
[357654732,1744277443090,-500.0,0.00043734,10]
[357654733,1744277443100,-500.0,0.00043734,10]
[357654734,1744277443110,-500.0,0.00043734,10]
[357654735,1744277443119,-500.0,0.00043734,10]
[357654736,1744277443129,-500.0,0.00043734,10]
[357654737,1744277443138,-500.0,0.00043734,10]
[357654738,1744277443148,-500.0,0.00043734,10]
[357654739,1744277443158,-500.0,0.00043735,10]
[357654740,1744277443167,-500.0,0.00043735,10]
[357654741,1744277443176,-500.0,0.00043735,10]
[357654742,1744277443185,-500.0,0.00043735,10]
[357654743,1744277443196,-500.0,0.00043735,10]
[357654744,1744277443206,-500.0,0.00043735,10]
[357654745,1744277443215,-500.0,0.00043735,10]
[357654746,1744277443225,-304.6015625,0.00043735,10]
[357654747,1744277443234,-716.465397,0.00043735,14]
[357654748,1744277443244,-716.465397,0.00043735,14]
[357654749,1744277443253,-151.0,0.00043735,14]
[357654750,1744277443263,-150.0,0.00043735,3]
[357654751,1744277443272,-150.0,0.00043735,3]
[357654752,1744277443281,-150.0,0.00043735,3]
[357654753,1744277443291,-150.0,0.00043735,3]
[357654754,1744277443300,-150.0,0.00043735,3]
[357654755,1744277443310,-150.0,0.00043735,3]
[357654756,1744277443319,-150.0,0.00043735,3]
[357654757,1744277443329,-150.0,0.00043735,120]
[357654758,1744277443338,-25250.5560932,0.00043735,30]
[357654759,1744277443347,-405.48568538,0.00043736,2]
[357654760,1744277443357,-243.29141123,0.00043736,2]
[357654761,1744277443366,-374.14141195,0.00043736,2]
[357654762,1744277443376,-389.70654009,0.00043736,2]
[357654763,1744277443385,-1486.66685783,0.00043736,10]
[357654764,1744277443395,-1210.0,0.00043736,2]
[357654765,1744277443405,-701.85098552,0.00043736,2]
[357654766,1744277443414,-361.41959347,0.00043736,2]
[357654767,1744277443424,-702.25442789,0.00043736,10]
[357654768,1744277443433,-347.58529674,0.00043736,2]
[357654769,1744277443443,-617.30656619,0.00043736,6]
[357654770,1744277443453,-955.17212008,0.00043736,20]
[357654771,1744277443462,-760.07256948,0.00043736,2]
[357654772,1744277443472,-1027.44261529,0.00043736,2]
[357654773,1744277443481,-528.98625921,0.00043736,7]
[357654774,1744277443492,-150.99720692,0.00043736,2]
[357654775,1744277443501,-248.62159287,0.00043736,2]
[357654776,1744277443668,-164.08238183,0.00043736,2]
[357654777,1744277443692,-799.999999,0.00043736,5]
[357654778,1744277443702,-1259.13116591,0.00043736,2]
[357654779,1744277443712,-1039.31609264,0.00043736,2]
[357654780,1744277443722,-258.77224711,0.00043736,2]
[357654781,1744277443732,-593.57630736,0.00043736,2]
[357654782,1744277443742,-1308.92550497,0.00043736,2]
[357654783,1744277443752,-1000.0,0.00043736,10]
[357654784,1744277443762,-183.6880163,0.00043736,2]
[357654785,1744277443771,-643.0,0.00043736,2]
[357654786,1744277443785,-968.30256938,0.00043736,2]
[357654787,1744277443795,-572.04215065,0.00043736,2]
[357654788,1744277443805,-154.16574071,0.00043736,2]
[357654789,1744277443814,-175.08239709,0.00043736,2]
[357654790,1744277443823,-299.79512585,0.00043736,2]
[357654791,1744277443834,-550.0,0.00043736,2]
[357654792,1744277443845,-1463.84519459,0.00043736,2]
[357654793,1744277443855,-1006.34907021,0.00043736,2]
[357654794,1744277443864,-801.75918995,0.00043736,2]
[357654795,1744277443874,-562.28715462,0.00043736,2]
[357654796,1744277443884,-150.0,0.00043736,2]
[357654797,1744277443893,-606.16287382,0.00043736,2]
[357654798,1744277443903,-625.33795272,0.00043736,2]
[357654799,1744277443912,-214.37087426,0.00043736,2]
[357654800,1744277443921,-1413.98319262,0.00043736,2]
[357654801,1744277443930,-229.34536636,0.00043736,2]
[357654802,1744277443940,-916.43801595,0.00043736,3]
[357654803,1744277443950,-500.0,0.00043736,7]
[357654804,1744277443959,-264.85842088,0.00043736,20]
[357654805,1744277443968,-301.19893483,0.00043736,14]
[357654806,1744277443977,-568.12206326,0.00043736,2]
[357654807,1744277443987,-304.22862091,0.00043736,2]
[357654808,1744277443996,-419.0,0.00043736,15]
[357654809,1744277444006,-150.0,0.00043736,2]
[357654810,1744277444015,-2000.0,0.00043736,2]
[357654811,1744277444025,-2000.0,0.00043736,2]
[357654812,1744277444035,-2000.0,0.00043736,2]
[357654813,1744277444044,-2000.0,0.00043736,2]
[357654814,1744277444054,-2000.0,0.00043736,2]
[357654815,1744277444067,-112388.67692483,0.00043736,2]
[357654816,1744277444076,-62908.29694365,0.00043736,2]
[357654817,1744277444086,-10589.43511545,0.00043736,3]
[357654818,1744277444095,-1517.99609901,0.00043736,2]
[357654819,1744277444105,-5174.98473327,0.00043736,2]
[357654820,1744277444115,-2450.87979343,0.00043736,2]
[357654821,1744277444124,-232.1578381,0.00043736,2]
[357654822,1744277444596,-250.0,0.00043736,2]
[357654831,1744277445942,-151.0,0.0004199,14]
[357654832,1744277445952,-151.0,0.00042,14]
[357654833,1744277445961,-148.52363732,0.00042,14]
[357654834,1744277445985,-2.47636268,0.00042,14]
[357654835,1744277445994,-151.0,0.00042,14]
[357654836,1744277446003,-151.0,0.00043225,14]
[357654837,1744277446012,-151.0,0.00043706,14]
[357654838,1744277446022,-80289.05796658,0.00043736,2]
[357654839,1744277446031,-2700.71449553,0.00043736,2]
[357654840,1744277446040,-9573.75544347,0.00043736,2]
[357654857,1744277446595,-151.0,0.0004199,14]
[357654858,1744277446604,-223.169265,0.00042,14]
[357654859,1744277446614,-443.7038508,0.00043736,2]
[357654860,1744277446675,-25361.94405797,0.00043736,2]
[357654861,1744277446686,-179780.38953561,0.00043736,2]
[357654862,1744277446696,-43851.35928048,0.00043736,2]
[357654863,1744277446705,-7705.71742993,0.00043736,2]
[357654864,1744277446715,-2232.53687091,0.00043736,10]
[357654865,1744277446724,-529.31974498,0.00043736,2]
[357654866,1744277448073,-210.99,0.00039648,2]
[357654867,1744277448084,-151.0,0.00039648,2]
[357654868,1744277448094,-151.0,0.00039648,2]
[357654869,1744277448103,-300.35,0.0004199,5]
[357654870,1744277448114,-1758.0,0.000437,7]
[357654871,1744277448123,-5592.66996186,0.00043736,2]
[357654872,1744277448179,-251.480448,0.00041,14]
[357654873,1744277448189,-6248.06546366,0.00043736,2]
[357654874,1744277448208,-5037.20733962,0.00043736,2]
[357654879,1744277903721,250.0,0.00019,2]
[357654881,1744277978004,336.5,0.00035,30]
[357654890,1744278340140,-159.93,0.00026849,2]
[357654891,1744278340160,-205.0,0.0002799,2]
[357654892,1744278340181,-205.0,0.0003011,2]
[357654893,1744278340202,-205.0,0.0003224,2]
[357654894,1744278340222,-159.93,0.00032646,2]
[357654895,1744278340242,-205.0,0.0003437,2]
[357654896,1744278340262,-28.50913551,0.0003649,2]
[357654897,1744278351120,-176.49086449,0.0003649,2]
[357654898,1744278351140,-250.0,0.00036729,2]
[357654899,1744278351161,-160.34070726,0.00038343,2]
[357654900,1744278351181,-159.93,0.00038443,2]
[357654901,1744278351200,-209.0,0.0003862,30]
[357654902,1744278351221,-205.0,0.0003862,2]
[357654903,1744278351241,-303.39,0.0003862,5]
[357654904,1744278351261,-305.37,0.0003862,5]
[357654905,1744278351282,-304.01,0.0003862,5]
[357654906,1744278351301,-304.24,0.0003862,5]
[357654907,1744278351321,-301.1,0.0003862,5]
[357654908,1744278351342,-305.76,0.0003862,5]
[357654909,1744278351362,-305.32,0.0003862,5]
[357654910,1744278351382,-304.56,0.00038621,5]
[357654911,1744278351402,-305.36,0.00038625,5]
[357654912,1744278351426,-303.61,0.00038625,5]
[357654913,1744278351448,-305.15,0.00038643,5]
[357654914,1744278351471,-300.74,0.00038739,5]
[357654915,1744278351492,-303.79,0.00039221,5]
[357654916,1744278351513,-864.4,0.00039227,2]
[357654917,1744278351534,-321.86217331,0.00039704,2]
[357654921,1744278438125,-304.44,0.0003862,5]
[357654922,1744278438152,-303.13,0.0003862,5]
[357654923,1744278438173,-301.01,0.0003862,5]
[357654924,1744278438195,-304.33,0.00038621,5]
[357654925,1744278438217,-678.13782669,0.00039704,2]
[357654926,1744278438237,-250.0,0.00039902,2]
[357654927,1744278438258,-151.0,0.00040022,2]
[357654928,1744278438278,-785.796,0.00040022,2]
[357654929,1744278438298,-544.0,0.00040022,2]
[357654930,1744278438320,-282.84,0.000401,2]
[357654931,1744278438340,-185.25,0.00040636,2]
[357654932,1744278438361,-801.84,0.00040646,30]
[357654933,1744278438382,-1167.0,0.00040646,4]
[357654934,1744278438402,-209.0,0.0004075,30]
[357654935,1744278438425,-205.0,0.0004075,2]
[357654936,1744278438446,-250.0,0.00040844,2]
[357654937,1744278438467,-537.0,0.00040997,5]
[357654938,1744278438487,-302.53,0.00040998,5]
[357654939,1744278438508,-301.85,0.00040998,5]
[357654940,1744278438529,-301.59,0.00040999,5]
[357654941,1744278438551,-303.06,0.00040999,5]
[357654942,1744278438572,-302.53,0.00040999,5]
[357654943,1744278438593,-302.06,0.00040999,5]
[357654944,1744278438616,-300.52,0.00040999,5]
[357654945,1744278438638,-305.79,0.00040999,5]
[357654946,1744278438660,-303.63,0.00040999,5]
[357654947,1744278438682,-304.42,0.00040999,5]
[357654948,1744278438703,-300.33,0.00040999,5]
[357654949,1744278438724,-302.77,0.00040999,5]
[357654950,1744278438745,-300.9,0.00040999,5]
[357654951,1744278438766,-303.7,0.00040999,5]
[357654952,1744278438788,-302.15,0.00040999,5]
[357654953,1744278438810,-150.0,0.00040999,2]
[357654954,1744278438830,-301.46,0.00041,5]
[357654955,1744278438851,-305.09,0.00041,5]
[357654956,1744278438873,-304.83,0.00041,5]
[357654957,1744278438896,-300.11,0.00041,5]
[357654958,1744278438918,-302.33,0.00041,5]
[357654959,1744278438940,-305.08,0.00041,5]
[357654960,1744278438962,-302.73,0.00041,5]
[357654961,1744278438984,-305.84,0.00041,5]
[357654962,1744278439006,-304.17,0.00041,5]
[357654963,1744278439028,-305.7,0.00041,5]
[357654964,1744278439065,-303.44,0.00041,5]
[357654965,1744278439095,-304.65,0.00041,5]
[357654966,1744278439119,-304.69,0.00041,5]
[357654967,1744278439144,-305.86,0.00041,5]
[357654968,1744278439169,-304.64,0.00041,5]
[357654969,1744278439192,-301.19,0.00041,5]
[357654970,1744278439216,-150.0,0.00041096,2]
[357654971,1744278439239,-300.66,0.00041162,5]
[357654972,1744278439266,-864.4,0.00041491,2]
[357654973,1744278439289,-152.455894,0.0004199,14]
[357654974,1744278439317,-155.39,0.00042033,2]
[357654975,1744278439340,-848.53,0.000421,7]